[Event "GER-chT States Women 2022"]
[Site "Braunfels"]
[Date "2022.06.17"]
[Round "3.34"]
[White "Mader, Lena"]
[Black "Nizamova, Rita"]
[Result "1-0"]
[ECO "A20"]
[WhiteElo "1789"]
[BlackElo "1814"]
[Annotator "NA RC"]
[PlyCount "109"]
[EventDate "2022.06.15"]
[EventType "swiss"]
[EventCountry "GER"]
[SourceTitle "playchess.com"]
[Source "ChessBase"]
[SourceQuality "1"]
[TimeControl "40/5400+30:1800+30"]

1. c4 {[%emt 0:00:01]} e5 {[%emt 0:00:50]} 2. g3 {[%emt 0:00:06]} f5 {[%emt 0:01:13]} 3. Bg2 {[%emt 0:00:12]} Nf6 {[%emt 0:00:09]} 4. d3 {[%emt 0:02:14]} Nc6 {[%emt 0:00:39]} 5. Nc3 {[%emt 0:00:18]} Be7 {[%emt 0:01:57]} 6. Nf3 {[%emt 0:01:05]} d6 {[%emt 0:08:34]} 7. Rb1 {[%emt 0:00:31]} a5 {[%emt 0:00:47]} 8. a3 {[%emt 0:00:05]} O-O {[%emt 0:03:23]} 9. O-O {[%emt 0:00:05]} h6 {[%emt 0:01:08]} 10. b4 {[%emt 0:01:21]} axb4 {[%emt 0:00:07]} 11. axb4 {[%emt 0:00:01]} g5 {[%emt 0:06:49]} 12. b5 {[%emt 0:01:01]} Na5 {[%emt 0:04:24]} 13. Nd2 {[%emt 0:02:47]} Be6 {[%emt 0:06:50]} 14. Nb3 {[%emt 0:09:00]} d5 {[%emt 0:02:37]} 15. Nxa5 {[%emt 0:04:25]} Rxa5 {[%emt 0:00:17]} 16. Qb3 {[%emt 0:01:44]} dxc4 {[%emt 0:06:38]} 17. dxc4 {[%emt 0:00:09]} e4 {[%emt 0:00:07]} 18. Rd1 {[%emt 0:04:20]} Qa8 {[%emt 0:01:30]} 19. Nd5 {[%emt 0:03:52]} Bxd5 {[%emt 0:06:54]} 20. cxd5 {[%emt 0:00:14]} Bd6 {[%emt 0:00:06]} 21. b6 {[%emt 0:01:48]} Qa6 {[%emt 0:05:32]} 22. bxc7 {[%emt 0:09:27]} Qxe2 {[%emt 0:02:23]} 23. Rd2 {[%emt 0:01:40]} Qe1+ {[%emt 0:02:54]} 24. Bf1 {[%emt 0:00:05]} Rc5 {[%emt 0:20:55]} 25. Rc2 {[%emt 0:14:05]} Qa5 {[%emt 0:07:40]} 26. Ba3 {[%emt 0:02:03]} Rxc2 {[%emt 0:01:04]} 27. Qxc2 {[%emt 0:00:02]} Qxa3 {[%emt 0:03:38]} 28. c8=Q {[%emt 0:00:23]} Rxc8 29. Qxc8+ {[%emt 0:00:01]} Kg7 {[%emt 0:03:03]} 30. Qxf5 {[%emt 0:05:20]} e3 {[%emt 0:00:45]} 31. Rxb7+ {[%emt 0:05:02]} Be7 {[%emt 0:00:21]} 32. fxe3 {[%emt 0:07:29]} Qxe3+ {[%emt 0:00:22]} 33. Qf2 {[%emt 0:00:02]} Qe5 {[%emt 0:00:47]} 34. Qe2 {[%emt 0:14:10]} Qd4+ {[%emt 0:02:23]} 35. Kh1 {[%emt 0:00:23]} Nxd5 {[%emt 0:00:19]} 36. Rxe7+ {[%emt 0:03:45]} Nxe7 {[%emt 0:00:01]} 37. Qxe7+ Kg6 {[%emt 0:00:31]} 38. Qe6+ {[%emt 0:00:45]} Kg7 39. Bc4 Qa1+ {[%emt 0:00:37]} 40. Kg2 {[%emt 0:03:21]} Qb2+ {[%emt 0:00:26]} 41. Kh3 {[%emt 0:31:54]} h5 {[%emt 0:31:24]} 42. Qg8+ {[%emt 0:01:11]} Kh6 {[%emt 0:00:08]} 43. Qf8+ {[%emt 0:00:17]} Qg7 {[%emt 0:00:00]} 44. Qxg7+ {[%emt 0:00:00]} Kxg7 45. Be2 {[%emt 0:00:00]} Kg6 {[%emt 0:00:00]} 46. Bd3+ {[%emt 0:00:00]} Kf6 {[%emt 0:00:00]} 47. Kg2 {[%emt 0:00:00]} Kf7 {[%emt 0:00:00]} 48. Kf3 {[%emt 0:00:00]} Ke6 {[%emt 0:00:00]} 49. Ke4 {[%emt 0:00:00]} h4 {[%emt 0:00:00]} 50. Be2 {[%emt 0:00:00]} Kf6 {[%emt 0:00:00]} 51. Bg4 {[%emt 0:00:00]} Kf7 {[%emt 0:00:00]} 52. Ke5 {[%emt 0:00:00]} Kg6 {[%emt 0:00:00]} 53. Ke6 {[%emt 0:00:00]} Kh6 {[%emt 0:00:00]} 54. Kf6 {[%emt 0:00:00]} h3 {[%emt 0:00:00]} 55. Kf5 {[%emt 0:00:00]} 1-0

[Event "GER-chT States Women 2022"]
[Site "Braunfels"]
[Date "2022.06.17"]
[Round "3.35"]
[White "Moeller, Hannah"]
[Black "Bazzazi, Elnaz"]
[Result "1/2-1/2"]
[ECO "A04"]
[WhiteElo "1833"]
[BlackElo "1749"]
[Annotator "NA RC"]
[PlyCount "22"]
[EventDate "2022.06.15"]
[EventType "swiss"]
[EventCountry "GER"]
[SourceTitle "playchess.com"]
[Source "ChessBase"]
[SourceQuality "1"]
[TimeControl "40/5400+30:1800+30"]

1. Nf3 {[%emt 0:00:03]} b6 {[%emt 0:01:50]} 2. g3 {[%emt 0:00:23]} Bb7 {[%emt 0:00:14]} 3. d4 {[%emt 0:00:19]} e6 {[%emt 0:00:36]} 4. Bg2 {[%emt 0:00:10]} Nf6 {[%emt 0:01:06]} 5. O-O {[%emt 0:00:11]} c5 {[%emt 0:03:00]} 6. c3 {[%emt 0:02:30]} d5 {[%emt 0:01:11]} 7. c4 {[%emt 0:00:50]} Nbd7 {[%emt 0:01:18]} 8. Nc3 {[%emt 0:00:39]} dxc4 {[%emt 0:10:40]} 9. Qa4 {[%emt 0:05:04]} a6 {[%emt 0:02:24]} 10. Qxc4 {[%emt 0:00:30]} b5 {[%emt 0:00:24]} 11. Qd3 {[%emt 0:00:15]} cxd4 {[%emt 0:06:45]} 1/2-1/2

[Event "GER-chT States Women 2022"]
[Site "Braunfels"]
[Date "2022.06.17"]
[Round "3.36"]
[White "Ramm, Madlen"]
[Black "Kiesel, Lara"]
[Result "1/2-1/2"]
[ECO "C15"]
[WhiteElo "1732"]
[BlackElo "1737"]
[Annotator "NA RC"]
[PlyCount "25"]
[EventDate "2022.06.15"]
[EventType "swiss"]
[EventCountry "GER"]
[SourceTitle "playchess.com"]
[Source "ChessBase"]
[SourceQuality "1"]
[TimeControl "40/5400+30:1800+30"]

1. e4 {[%emt 0:00:02]} e6 {[%emt 0:00:04]} 2. d4 {[%emt 0:00:03]} d5 {[%emt 0:00:04]} 3. Nc3 {[%emt 0:00:14]} Bb4 {[%emt 0:00:08]} 4. exd5 {[%emt 0:00:26]} exd5 {[%emt 0:00:07]} 5. Bd3 {[%emt 0:00:44]} Nf6 {[%emt 0:00:34]} 6. Nge2 {[%emt 0:00:31]} O-O {[%emt 0:03:26]} 7. O-O {[%emt 0:00:06]} c6 {[%emt 0:05:49]} 8. a3 {[%emt 0:02:39]} Bd6 {[%emt 0:01:20]} 9. Bg5 {[%emt 0:02:44]} Nbd7 {[%emt 0:05:54]} 10. Qd2 {[%emt 0:06:47]} h6 {[%emt 0:02:17]} 11. Bf4 {[%emt 0:04:50]} Qc7 {[%emt 0:02:44]} 12. Bxd6 {[%emt 0:00:11]} Qxd6 {[%emt 0:00:08]} 13. Qf4 {[%emt 0:04:29]} 1/2-1/2

[Event "GER-chT States Women 2022"]
[Site "Braunfels"]
[Date "2022.06.17"]
[Round "3.37"]
[White "Wilmink, Anna"]
[Black "Marx, Christina"]
[Result "1-0"]
[ECO "B34"]
[WhiteElo "1700"]
[BlackElo "1587"]
[Annotator "NA RC"]
[PlyCount "97"]
[EventDate "2022.06.15"]
[EventType "swiss"]
[EventCountry "GER"]
[SourceTitle "playchess.com"]
[Source "ChessBase"]
[SourceQuality "1"]
[TimeControl "40/5400+30:1800+30"]

1. e4 {[%emt 0:00:02]} c5 {[%emt 0:00:22]} 2. Nf3 {[%emt 0:00:08]} Nc6 {[%emt 0:00:08]} 3. d4 {[%emt 0:00:17]} cxd4 {[%emt 0:00:06]} 4. Nxd4 {[%emt 0:00:07]} g6 {[%emt 0:00:33]} 5. Nc3 {[%emt 0:00:21]} Bg7 {[%emt 0:00:05]} 6. Be3 {[%emt 0:00:11]} d6 {[%emt 0:00:53]} 7. Bc4 {[%emt 0:01:36]} Nf6 {[%emt 0:01:58]} 8. h3 {[%emt 0:01:07]} O-O {[%emt 0:01:16]} 9. Bb3 {[%emt 0:00:37]} a6 {[%emt 0:03:46]} 10. O-O {[%emt 0:02:24]} e5 {[%emt 0:01:27]} 11. Nde2 {[%emt 0:02:22]} Na5 {[%emt 0:00:20]} 12. Bd5 {[%emt 0:02:36]} Nxd5 {[%emt 0:02:21]} 13. Nxd5 {[%emt 0:00:25]} Nc4 {[%emt 0:00:42]} 14. Bc1 {[%emt 0:02:07]} Be6 {[%emt 0:06:44]} 15. Nec3 {[%emt 0:01:41]} b5 {[%emt 0:05:47]} 16. a4 {[%emt 0:04:57]} bxa4 {[%emt 0:06:05]} 17. Rxa4 {[%emt 0:01:45]} Bxd5 {[%emt 0:02:06]} 18. Nxd5 {[%emt 0:03:52]} Nb6 {[%emt 0:00:14]} 19. Ra3 {[%emt 0:03:00]} Nd7 {[%emt 0:04:15]} 20. Be3 {[%emt 0:03:18]} f5 {[%emt 0:05:39]} 21. f3 {[%emt 0:04:13]} f4 {[%emt 0:05:01]} 22. Bd2 {[%emt 0:03:11]} Nf6 {[%emt 0:02:13]} 23. Ba5 {[%emt 0:02:24]} Qb8 {[%emt 0:03:20]} 24. Rb3 {[%emt 0:02:44]} Qa7+ {[%emt 0:00:04]} 25. Bb6 {[%emt 0:01:01]} Qf7 {[%emt 0:00:54]} 26. Nxf6+ {[%emt 0:01:24]} Qxf6 {[%emt 0:00:44]} 27. Qd5+ {[%emt 0:03:03]} Kh8 {[%emt 0:00:39]} 28. Rd1 {[%emt 0:01:32]} Rac8 {[%emt 0:02:03]} 29. c3 {[%emt 0:02:08]} Rfe8 {[%emt 0:05:56]} 30. Ra3 {[%emt 0:04:15]} Qe6 {[%emt 0:07:55]} 31. Rxa6 {[%emt 0:03:41]} Qxd5 {[%emt 0:02:55]} 32. Rxd5 {[%emt 0:01:57]} Rc6 {[%emt 0:00:05]} 33. Rda5 {[%emt 0:01:16]} Bf6 {[%emt 0:02:58]} 34. Ra8 {[%emt 0:02:37]} Rxa8 {[%emt 0:01:36]} 35. Rxa8+ {[%emt 0:00:06]} Kg7 {[%emt 0:00:04]} 36. Bf2 {[%emt 0:01:08]} h5 {[%emt 0:01:58]} 37. Kf1 {[%emt 0:01:00]} h4 {[%emt 0:00:18]} 38. Ke2 {[%emt 0:00:39]} g5 {[%emt 0:00:05]} 39. Kd3 {[%emt 0:01:02]} Kf7 {[%emt 0:00:17]} 40. b4 {[%emt 0:01:15]} Ke6 {[%emt 0:00:32]} 41. b5 {[%emt 0:31:18]} Rc7 {[%emt 0:36:05]} 42. b6 {[%emt 0:02:16]} Rb7 {[%emt 0:00:04]} 43. Kc4 {[%emt 0:03:09]} d5+ {[%emt 0:08:17]} 44. exd5+ {[%emt 0:02:47]} Kd6 {[%emt 0:00:06]} 45. Bc5+ {[%emt 0:01:58]} Kd7 {[%emt 0:00:47]} 46. Kd3 {[%emt 0:01:57]} Bd8 {[%emt 0:01:04]} 47. Ra7 {[%emt 0:00:40]} Kc8 {[%emt 0:00:22]} 48. Rxb7 {[%emt 0:00:44]} Kxb7 {[%emt 0:00:15]} 49. Ke4 {[%emt 0:00:43]} 1-0

[Event "GER-chT States Women 2022"]
[Site "Braunfels"]
[Date "2022.06.17"]
[Round "3.38"]
[White "Mueller, Riyanna"]
[Black "Balazs, Kata"]
[Result "0-1"]
[ECO "B01"]
[WhiteElo "1521"]
[BlackElo "1679"]
[Annotator "NA RC"]
[PlyCount "72"]
[EventDate "2022.06.15"]
[EventType "swiss"]
[EventCountry "GER"]
[SourceTitle "playchess.com"]
[Source "ChessBase"]
[SourceQuality "1"]
[TimeControl "40/5400+30:1800+30"]

1. e4 {[%emt 0:00:04]} d5 {[%emt 0:00:08]} 2. exd5 {[%emt 0:00:08]} Qxd5 {[%emt 0:00:04]} 3. Nc3 {[%emt 0:00:05]} Qa5 {[%emt 0:00:04]} 4. d4 {[%emt 0:00:07]} Nf6 {[%emt 0:00:07]} 5. Nf3 {[%emt 0:00:08]} Bg4 {[%emt 0:00:13]} 6. h3 {[%emt 0:00:21]} Bxf3 {[%emt 0:01:04]} 7. Qxf3 {[%emt 0:00:07]} c6 {[%emt 0:00:07]} 8. Bd2 {[%emt 0:00:52]} Qb6 {[%emt 0:03:15]} 9. O-O-O {[%emt 0:00:13]} e6 {[%emt 0:04:12]} 10. Bd3 {[%emt 0:04:22]} Nbd7 {[%emt 0:08:41]} 11. Rhe1 {[%emt 0:18:27]} Be7 {[%emt 0:02:41]} 12. g4 {[%emt 0:13:07]} h6 {[%emt 0:05:16]} 13. Be3 {[%emt 0:05:39]} Nd5 {[%emt 0:10:13]} 14. Ne4 {[%emt 0:09:22]} Nxe3 {[%emt 0:09:54]} 15. fxe3 {[%emt 0:00:49]} Nf6 {[%emt 0:01:54]} 16. Rf1 {[%emt 0:00:49]} O-O-O {[%emt 0:00:52]} 17. Nxf6 {[%emt 0:01:36]} Bxf6 {[%emt 0:00:17]} 18. c3 {[%emt 0:01:32]} Rd7 {[%emt 0:02:53]} 19. Qg3 {[%emt 0:03:29]} Rhd8 {[%emt 0:09:04]} 20. Rf3 {[%emt 0:04:03]} Qa5 {[%emt 0:04:26]} 21. Kb1 {[%emt 0:01:06]} c5 {[%emt 0:03:28]} 22. Rdf1 {[%emt 0:04:49]} cxd4 {[%emt 0:01:35]} 23. exd4 {[%emt 0:01:22]} Rd6 {[%emt 0:00:48]} 24. h4 {[%emt 0:02:12]} a6 {[%emt 0:08:33]} 25. Rg1 {[%emt 0:03:12]} R8d7 {[%emt 0:05:41]} 26. g5 {[%emt 0:10:35]} hxg5 {[%emt 0:00:50]} 27. hxg5 {[%emt 0:00:07]} Be7 {[%emt 0:05:07]} 28. Rxf7 {[%emt 0:02:11]} Rb6 {[%emt 0:00:29]} 29. Rf2 {[%emt 0:00:53]} Rd5 {[%emt 0:06:59]} 30. g6 {[%emt 0:02:55]} Rg5 {[%emt 0:02:24]} 31. Qh2 {[%emt 0:00:08]} Rxg1+ {[%emt 0:00:19]} 32. Qxg1 {[%emt 0:00:06]} Kd8 {[%emt 0:01:32]} 33. Rc2 {[%emt 0:02:30]} Bf6 {[%emt 0:01:31]} 34. Qe3 {[%emt 0:00:49]} Rd6 {[%emt 0:01:17]} 35. Rf2 {[%emt 0:01:00]} Qh5 {[%emt 0:00:29]} 36. Qg3 {[%emt 0:00:50]} Qd1# {[%emt 0:00:15]} 0-1

[Event "GER-chT States Women 2022"]
[Site "Braunfels"]
[Date "2022.06.17"]
[Round "3.39"]
[White "Grabowski, Petra"]
[Black "Anisimova, Mariya"]
[Result "0-1"]
[ECO "B08"]
[WhiteElo "1635"]
[BlackElo "1386"]
[Annotator "NA RC"]
[PlyCount "72"]
[EventDate "2022.06.15"]
[EventType "swiss"]
[EventCountry "GER"]
[SourceTitle "playchess.com"]
[Source "ChessBase"]
[SourceQuality "1"]
[TimeControl "40/5400+30:1800+30"]

1. d4 {[%emt 0:00:03]} Nf6 {[%emt 0:00:05]} 2. Nf3 {[%emt 0:00:11]} g6 {[%emt 0:01:11]} 3. Nc3 {[%emt 0:00:30]} Bg7 {[%emt 0:00:07]} 4. e4 {[%emt 0:00:23]} d6 {[%emt 0:00:13]} 5. Be3 {[%emt 0:00:46]} O-O {[%emt 0:01:11]} 6. Qd2 {[%emt 0:00:35]} Ng4 {[%emt 0:01:55]} 7. Bg5 {[%emt 0:01:33]} h6 {[%emt 0:03:55]} 8. h3 {[%emt 0:04:05]} Nxf2 {[%emt 0:11:47]} 9. Qxf2 {[%emt 0:00:47]} hxg5 {[%emt 0:00:07]} 10. Nxg5 {[%emt 0:00:23]} Bh6 {[%emt 0:07:50]} 11. Nf3 {[%emt 0:22:15]} e6 {[%emt 0:15:37]} 12. Bd3 {[%emt 0:04:39]} Nc6 {[%emt 0:04:01]} 13. a3 {[%emt 0:02:42]} Bg7 {[%emt 0:05:51]} 14. g4 {[%emt 0:06:03]} e5 {[%emt 0:02:21]} 15. d5 {[%emt 0:04:34]} Nd4 {[%emt 0:01:53]} 16. Nxd4 {[%emt 0:01:17]} exd4 {[%emt 0:00:07]} 17. Nb5 {[%emt 0:02:05]} c6 {[%emt 0:02:32]} 18. dxc6 {[%emt 0:02:14]} bxc6 {[%emt 0:00:24]} 19. Nxd4 {[%emt 0:00:50]} c5 {[%emt 0:01:45]} 20. Nf3 {[%emt 0:19:08]} Bxb2 {[%emt 0:00:42]} 21. Ra2 {[%emt 0:03:58]} Bc3+ {[%emt 0:00:48]} 22. Ke2 {[%emt 0:06:47]} Be6 {[%emt 0:00:53]} 23. Raa1 {[%emt 0:01:14]} Bxa1 {[%emt 0:01:26]} 24. Rxa1 {[%emt 0:00:02]} c4 {[%emt 0:00:34]} 25. g5 {[%emt 0:02:13]} cxd3+ {[%emt 0:00:13]} 26. cxd3 {[%emt 0:00:01]} Kg7 {[%emt 0:00:35]} 27. Qd4+ {[%emt 0:00:45]} f6 {[%emt 0:00:52]} 28. h4 {[%emt 0:02:08]} Bg4 {[%emt 0:00:28]} 29. Rf1 {[%emt 0:01:17]} Qb6 {[%emt 0:01:03]} 30. Qc3 {[%emt 0:01:27]} Qc5 {[%emt 0:00:25]} 31. Qb2 {[%emt 0:00:34]} Rac8 {[%emt 0:00:31]} 32. gxf6+ {[%emt 0:00:39]} Rxf6 {[%emt 0:00:27]} 33. Kd2 {[%emt 0:01:37]} Bxf3 {[%emt 0:00:59]} 34. Rxf3 {[%emt 0:00:01]} Qc2+ {[%emt 0:00:21]} 35. Qxc2 {[%emt 0:00:11]} Rxc2+ {[%emt 0:00:08]} 36. Kxc2 {[%emt 0:00:05]} Rxf3 {[%emt 0:00:07]} 0-1

[Event "GER-chT States Women 2022"]
[Site "Braunfels"]
[Date "2022.06.17"]
[Round "3.40"]
[White "Perovic-Ottstadt, Sanja"]
[Black "Zoellner, Bente"]
[Result "0-1"]
[ECO "A48"]
[WhiteElo "1507"]
[BlackElo "1589"]
[Annotator "NA RC"]
[PlyCount "74"]
[EventDate "2022.06.15"]
[EventType "swiss"]
[EventCountry "GER"]
[SourceTitle "playchess.com"]
[Source "ChessBase"]
[SourceQuality "1"]
[TimeControl "40/5400+30:1800+30"]

1. d4 {[%emt 0:00:03]} Nf6 {[%emt 0:00:07]} 2. Nf3 {[%emt 0:00:08]} g6 {[%emt 0:00:17]} 3. c3 {[%emt 0:00:12]} Bg7 {[%emt 0:00:10]} 4. Bg5 {[%emt 0:00:11]} O-O {[%emt 0:00:23]} 5. Nbd2 {[%emt 0:00:12]} d5 {[%emt 0:00:28]} 6. e3 {[%emt 0:00:12]} Nbd7 {[%emt 0:00:17]} 7. Be2 {[%emt 0:00:42]} c5 {[%emt 0:00:37]} 8. O-O {[%emt 0:04:05]} c4 {[%emt 0:01:52]} 9. Re1 {[%emt 0:00:58]} b5 {[%emt 0:00:44]} 10. Bh4 {[%emt 0:03:15]} a5 {[%emt 0:01:24]} 11. Bg3 {[%emt 0:01:55]} Nh5 {[%emt 0:01:06]} 12. e4 {[%emt 0:00:58]} Nxg3 {[%emt 0:00:38]} 13. hxg3 {[%emt 0:00:13]} e6 {[%emt 0:00:43]} 14. exd5 {[%emt 0:00:28]} exd5 {[%emt 0:00:10]} 15. Bf1 {[%emt 0:01:05]} b4 {[%emt 0:00:46]} 16. Ne5 {[%emt 0:06:45]} Nxe5 {[%emt 0:01:15]} 17. dxe5 {[%emt 0:00:10]} Re8 {[%emt 0:00:49]} 18. Nf3 {[%emt 0:00:40]} Bg4 {[%emt 0:01:21]} 19. Qd4 {[%emt 0:01:38]} Bf5 {[%emt 0:04:04]} 20. Rad1 {[%emt 0:04:13]} Be4 {[%emt 0:00:38]} 21. Nd2 {[%emt 0:00:46]} Bxe5 {[%emt 0:00:44]} 22. Qe3 {[%emt 0:01:07]} Bc2 {[%emt 0:01:01]} 23. Rc1 {[%emt 0:01:49]} Bf5 {[%emt 0:01:06]} 24. Nf3 {[%emt 0:02:49]} Bf6 {[%emt 0:01:06]} 25. Qc5 {[%emt 0:01:22]} Rxe1 {[%emt 0:01:52]} 26. Nxe1 {[%emt 0:01:08]} Rc8 {[%emt 0:02:30]} 27. Qe3 {[%emt 0:01:45]} Rc7 {[%emt 0:01:36]} 28. Qb6 {[%emt 0:01:37]} Rd7 {[%emt 0:00:37]} 29. Qxd8+ {[%emt 0:01:11]} Rxd8 {[%emt 0:00:11]} 30. Nf3 {[%emt 0:00:38]} Re8 {[%emt 0:00:14]} 31. Nd4 {[%emt 0:01:00]} bxc3 {[%emt 0:02:10]} 32. bxc3 {[%emt 0:00:26]} Bxd4 {[%emt 0:00:29]} 33. cxd4 {[%emt 0:00:26]} Kf8 {[%emt 0:00:47]} 34. f3 {[%emt 0:01:13]} Rb8 {[%emt 0:00:31]} 35. g4 {[%emt 0:01:02]} Rb1 {[%emt 0:00:23]} 36. Rxb1 {[%emt 0:02:49]} Bxb1 {[%emt 0:00:06]} 37. a3 {[%emt 0:00:13]} c3 {[%emt 0:00:06]} 0-1

[Event "GER-chT States Women 2022"]
[Site "Braunfels"]
[Date "2022.06.18"]
[Round "4.1"]
[White "Zatonskih, Anna"]
[Black "Khrapko, Marharyta"]
[Result "1-0"]
[ECO "A43"]
[WhiteElo "2386"]
[BlackElo "2110"]
[Annotator "TA"]
[PlyCount "75"]
[EventDate "2022.06.15"]
[EventType "swiss"]
[EventCountry "GER"]
[SourceTitle "playchess.com"]
[Source "ChessBase"]
[SourceQuality "1"]
[TimeControl "40/5400+30:1800+30"]

{[%evp 9,74,36,69,75,81,21,53,12,64,67,89,97,100,101,106,105,130,120,130,122,132,127,161,177,171,172,169,156,174,163,180,158,170,158,189,150,156,159,168,158,181,168,200,195,197,199,206,175,268,254,308,306,470,508,495,504,827,843,902,902,1822,768,1672,1648,29998,29999,29999]} 1. d4 {[%emt 0:00:08]} Nf6 {[%emt 0:00:05]} 2. Nf3 {[%emt 0:00:40]} c5 {[%emt 0:00:11]} 3. d5 {[%emt 0:00:46]} b5 {[%emt 0:00:15]} 4. Bg5 {[%emt 0:03:32]} Qb6 {[%emt 0:11:18]} 5. Bxf6 {[%emt 0:01:49]} gxf6 {[%emt 0:00:12]} 6. e4 {[%emt 0:05:15] A43: Schmid Benoni.} d6 {[%emt 0:00:44]} 7. Nc3 {[%emt 0:12:04]} (7. Nh4 $16) 7... b4 $11 {[%emt 0:03:59] [#]} 8. Nb1 $146 {[%emt 0:05:31] White is slightly better.} ({Predecessor:} 8. Na4 Qa5 9. b3 Bg7 10. Nb2 Nd7 11. Nc4 Qc7 12. Bd3 f5 13. Rb1 Bc3+ 14. Nfd2 fxe4 15. Bxe4 {1-0 (20) Grabowski,P (2228)-Byrka,M (2229) Wisla 2002}) 8... Bh6 {[%emt 0:12:32]} (8... f5 $11) 9. Nbd2 $14 {[%emt 0:01:04]} Bxd2+ {[%emt 0:00:38]} 10. Nxd2 {[%emt 0:01:00]} ({Much worse is} 10. Kxd2 $6 Nd7 $11) 10... Nd7 {[%emt 0:01:01]} 11. Nc4 {[%emt 0:07:39]} Qc7 {[%emt 0:00:16]} 12. Ne3 {[%emt 0:01:40] White is more active.} Nb6 {[%emt 0:05:10]} 13. Qh5 {[%emt 0:06:24]} Bd7 {[%emt 0:07:23]} 14. Be2 {[%emt 0:02:35]} h6 {[%emt 0:21:03]} 15. O-O {[%emt 0:02:21]} Rh7 {[%emt 0:02:57]} 16. b3 {[%emt 0:05:06]} a5 {[%emt 0:04:30]} 17. Bd3 {[%emt 0:09:09][%cal Oe4e5] [#] And now e5! would win.} Rh8 {[%emt 0:00:54]} 18. f4 {[%emt 0:00:40]} a4 {[%emt 0:01:06]} 19. Rae1 {[%emt 0:01:08][%cal Oe4e5]} Rf8 {[%emt 0:12:35]} 20. Qxh6 {[%emt 0:01:35][%cal Oe4e5]} O-O-O {[%emt 0:00:02]} 21. Qh5 {[%emt 0:02:45]} Kb7 {[%emt 0:00:01]} 22. Nc4 {[%emt 0:09:04]} Nxc4 {[%emt 0:01:10]} 23. Bxc4 {[%emt 0:00:03]} a3 {[%emt 0:00:53]} 24. Rf2 {[%emt 0:03:00][%cal Bf1f2,Bf2e2,Be2e4,Be4a4][%mdl 32]} Bc8 {[%emt 0:00:02]} 25. Qf3 {[%emt 0:03:13]} Ka7 {[%emt 0:00:19]} 26. c3 {[%emt 0:00:13]} Qa5 {[%emt 0:00:16]} 27. cxb4 {[%emt 0:00:39]} Qxb4 {[%emt 0:00:01]} 28. Rc1 {[%emt 0:00:13]} f5 {[%emt 0:01:49]} (28... Kb8 {was called for.} 29. Qh5 Bb7) 29. Re2 $18 {[%emt 0:02:00]} fxe4 {[%emt 0:01:57]} 30. Rxe4 {[%emt 0:00:31]} ({Don't take} 30. Qxe4 $6 e6 31. Qd3 (31. dxe6 fxe6 32. Qe3 Bb7 $16) 31... Kb8 $18) 30... e6 {[%emt 0:01:33]} (30... Qb7 {is a better defense.} 31. Qe2 Rfe8) 31. dxe6 {[%emt 0:04:04]} fxe6 {[%emt 0:00:12]} 32. Bxe6 {[%emt 0:01:07]} Qb5 {[%emt 0:02:00]} (32... Qb7 $142 33. Bd5 Qb6 34. Ra4+ Kb8) 33. Ra4+ {[%emt 0:01:19]} Kb6 {[%emt 0:00:28]} 34. Bc4 {[%emt 0:02:22]} Qe8 {[%emt 0:02:12]} 35. Bd5 {[%emt 0:01:16]} (35. Qc3 $142 Kc7 36. Qa5+ Kd7 37. Qa7+ Kc6 {[#]} 38. Bb5+ $1 {[%mdl 512]} Kd5 39. Rd1+ Ke6 40. Bxe8) 35... Ba6 {[%emt 0:01:41]} 36. Qc3 {[%emt 0:01:52] White wants to mate with Qa5+.} Qe2 {[%emt 0:00:38]} 37. Qa5+ {[%emt 0:00:37]} Ka7 {[%emt 0:00:02]} 38. Qc7# {[%emt 0:00:07] Weighted Error Value: White=0.12 (very precise) /Black=0.53} 1-0

[Event "GER-chT States Women 2022"]
[Site "Braunfels"]
[Date "2022.06.18"]
[Round "4.2"]
[White "Birkholz, Olga"]
[Black "Cosma, Elena-Luminita"]
[Result "1/2-1/2"]
[ECO "C00"]
[WhiteElo "1993"]
[BlackElo "2277"]
[Annotator "TA"]
[PlyCount "54"]
[EventDate "2022.06.15"]
[EventType "swiss"]
[EventCountry "GER"]
[SourceTitle "playchess.com"]
[Source "ChessBase"]
[SourceQuality "1"]
[TimeControl "40/5400+30:1800+30"]

{[%evp 9,54,-30,-8,-41,-41,-35,-37,-34,-29,-27,-6,-2,12,-3,-5,-8,-6,-22,0,0,0,0,0,0,0,0,7,0,22,22,28,22,24,8,22,16,10,0,0,0,0,-814,-110,-1431,481,-1058,416]} 1. e4 {[%emt 0:01:54]} e6 {[%emt 0:00:09]} 2. Qe2 {[%emt 0:00:06]} Be7 {[%emt 0:00:09]} 3. f4 {[%emt 0:00:54]} d5 {[%emt 0:00:14]} 4. e5 {[%emt 0:00:16]} h5 {[%emt 0:00:14]} 5. Nf3 {[%emt 0:00:25]} c5 {[%emt 0:00:35]} 6. d3 {[%emt 0:03:30] C00: French: Unusual White 2nd moves.} Nh6 {[%emt 0:00:20]} 7. g3 {[%emt 0:02:35]} Nf5 {[%emt 0:00:20]} 8. Bh3 {[%emt 0:01:25] Black is slightly better.} Nc6 {[%emt 0:00:24]} 9. c3 {[%emt 0:00:19] [#]} a6 $146 {[%emt 0:03:22]} ({Predecessor:} 9... d4 10. c4 b5 11. cxb5 Qa5+ 12. Kf2 Qxb5 13. Na3 Qb8 14. Nc4 g6 15. Bd2 Nb4 {1-0 (52) Shorokhov,A (2470)-Kiselev,V (2277) Rybinsk 2004}) 10. O-O {[%emt 0:04:58]} b5 {[%emt 0:00:40]} 11. Bxf5 {[%emt 0:08:36]} exf5 {[%emt 0:00:11]} 12. d4 {[%emt 0:00:03]} c4 {[%emt 0:06:35]} 13. Ng5 {[%emt 0:06:47]} Be6 {[%emt 0:01:44]} 14. Nd2 {[%emt 0:01:03][%cal Bb1d2,Bd2f3,Bf3h4,Bh4g2,Bg2f4][%mdl 32]} b4 {[%emt 0:20:15]} 15. Ndf3 {[%emt 0:00:46]} bxc3 {[%emt 0:00:30]} 16. bxc3 {[%emt 0:00:01]} Qa5 {[%emt 0:00:35]} 17. Qc2 {[%emt 0:06:15]} Rb8 {[%emt 0:08:39]} 18. Nh4 {[%emt 0:05:06]} Bxg5 {[%emt 0:01:03]} 19. fxg5 {[%emt 0:00:02]} g6 {[%emt 0:00:09]} 20. Ng2 {[%emt 0:12:59]} Kd7 {[%emt 0:02:17]} 21. h4 Rb5 22. Nf4 Rhb8 23. Rf3 Kc8 24. a4 Rb3 {[#] Threatens to win with ...Nxd4.} 25. Ba3 $2 {[%mdl 8192]} (25. Re3 $11) 25... Qxa4 $2 (25... Nxd4 $1 $19 {is more deadly.} 26. cxd4 Rxf3) 26. Bc1 $2 {[%mdl 8192]} Qa5 $4 {[%mdl 8192]} (26... Qxa1 $19 {and all is fine.} 27. Qd1 {[#]} Nxd4 $1 {[%mdl 512]} 28. Qxd4 Qxc1+ 29. Rf1 Qxc3 30. Qxc3 Rxc3) 27. Rf1 $4 {[%mdl 8192]} R3b5 $4 {[%mdl 40960] Weighted Error Value: White=0.92/Black=0.56. An unexpected result.} (27... Qxa1 $19 28. Ne2 a5) 1/2-1/2